bitfinex/quotes_SOLUSD_20220207
["timestamp","ask_amount","ask_price","bid_price","bid_amount"]
[1644195980518,42.92677257,113.48,113.4,72.10195212]
[1644195980719,42.92677257,113.48,113.4,12.99]
[1644195980919,42.92677257,113.48,113.38,36.026]
[1644195981118,42.92677257,113.48,113.36,12.74]
[1644195981317,45.11361174,113.48,113.36,12.74]
[1644195981718,56.15767257,113.48,113.36,12.74]
[1644195981920,56.15767257,113.48,113.37,47.43444728]
[1644195982118,42.92677257,113.48,113.37,60.66644728]
[1644195982319,42.92677257,113.48,113.39,37.6308025]
[1644195983219,42.67677257,113.48,113.39,37.6308025]
[1644195983421,42.67677257,113.48,113.39,37.8808025]
[1644195984024,42.67677257,113.48,113.39,51.1104025]
[1644195984721,42.92677257,113.48,113.39,51.1104025]
[1644195985122,42.92677257,113.48,113.39,50.8604025]
[1644195985323,42.92677257,113.48,113.39,53.23935992]
[1644195985521,42.92677257,113.48,113.39,71.97935992]
[1644195986024,36.92677257,113.48,113.39,71.97935992]
[1644195986221,36.92677257,113.48,113.39,69.8504025]
[1644195986421,42.92677257,113.48,113.39,69.8504025]
[1644195986644,42.92677257,113.48,113.39,71.97935992]
[1644195987121,36.92677257,113.48,113.39,69.8504025]
[1644195987923,42.92677257,113.48,113.39,69.8504025]
[1644195988122,42.92677257,113.48,113.39,63.6004025]
[1644195989922,42.92677257,113.48,113.39,63.8504025]
[1644195990523,42.92677257,113.48,113.39,69.8504025]
[1644195990724,42.92677257,113.48,113.39,63.8504025]
[1644195991324,36.92677257,113.48,113.39,63.8504025]
[1644195991524,42.92677257,113.48,113.39,63.8504025]
[1644195993526,42.92677257,113.48,113.39,63.6004025]
[1644195993727,42.92677257,113.48,113.39,63.8504025]
[1644195994149,42.92677257,113.48,113.39,63.6004025]
[1644195994329,42.92677257,113.48,113.39,50.3708025]
[1644195994528,42.92677257,113.48,113.39,12.74]
[1644195994928,42.92677257,113.48,113.35,72.5549]
[1644195994929,45.11361174,113.48,113.36,12.74]
[1644195995128,24.9864,113.47,113.36,12.74]
[1644195995329,13.233,113.46,113.37,13.2321]
[1644195995729,13.483,113.46,113.37,52.03902035]
[1644195995929,19.483,113.46,113.37,52.03902035]
[1644195996328,6.25,113.46,113.37,52.28902035]
[1644195996730,0.25,113.46,113.37,52.28902035]
[1644195996931,6.25,113.46,113.37,52.28902035]
[1644195997130,6.0,113.46,113.37,52.28902035]
[1644195997331,6.25,113.46,113.37,52.28902035]
[1644195997530,0.25,113.46,113.37,52.28902035]
[1644195998331,31.2364,113.47,113.38,12.74]
[1644195998732,31.2364,113.47,113.4,13.2274]
[1644195999132,31.2364,113.47,113.4,26.2174]
[1644195999535,31.2364,113.47,113.41,40.11075188]
[1644196000233,25.2364,113.47,113.41,40.11075188]
[1644196001035,25.2364,113.47,113.41,53.33775188]
[1644196008038,26.47789897,113.47,113.41,53.33775188]
[1644196008338,25.2364,113.47,113.41,53.33775188]
[1644196008939,25.2364,113.47,113.41,40.11075188]
[1644196012039,32.47789897,113.47,113.41,40.11075188]
[1644196015241,26.47789897,113.47,113.41,40.11075188]
[1644196016046,26.47789897,113.47,113.38,36.5662]
[1644196016242,34.66473814,113.47,113.37,1.25131695]
[1644196016443,1.24149897,113.46,113.37,7.25131695]
[1644196016667,1.24149897,113.45,113.35,5.65831695]
[1644196016845,1.24149897,113.44,113.35,4.407]
[1644196017044,24.03563506,113.43,113.36,36.15663979]
[1644196017244,24.28563506,113.43,113.36,36.15663979]
[1644196017444,30.28563506,113.43,113.36,36.15663979]
[1644196017846,31.52713403,113.43,113.36,36.15663979]
[1644196018246,30.28563506,113.43,113.36,36.15663979]
[1644196020251,0.25,113.43,113.36,36.40663979]
[1644196020459,1.24149897,113.45,113.36,51.27564161]
[1644196020648,1.24149897,113.45,113.36,57.27564161]
[1644196020847,0.25,113.45,113.36,57.27564161]
[1644196021752,69.18960627,113.46,113.36,57.27564161]
[1644196021948,30.56639897,113.46,113.36,70.50864161]
[1644196022448,29.3249,113.46,113.36,71.75995856]
[1644196022648,23.3249,113.46,113.36,96.68435856]
[1644196023050,26.22789897,113.47,113.36,96.68435856]
[1644196023250,1.24149897,113.47,113.36,96.68435856]
[1644196023450,1.24149897,113.48,113.36,96.68435856]
[1644196023649,7.24149897,113.48,113.37,1.25131695]
[1644196023849,1.24149897,113.48,113.41,43.2393759]
[1644196024249,1.49149897,113.48,113.41,43.4893759]
[1644196024450,1.24149897,113.48,113.41,43.4893759]
[1644196024651,1.49149897,113.48,113.41,43.4893759]
[1644196025052,1.49149897,113.48,113.41,56.7166759]
[1644196026053,0.25,113.48,113.41,56.7166759]
[1644196026252,1.49149897,113.49,113.41,56.7166759]
[1644196026451,7.24149897,113.49,113.41,56.7166759]
[1644196026651,0.25,113.49,113.42,12.74]
[1644196026852,0.25,113.49,113.43,13.2245]
[1644196027453,0.25,113.49,113.44,38.41318891]
[1644196027854,25.47009897,113.5,113.44,38.41318891]
[1644196030667,24.2286,113.5,113.44,38.41318891]
[1644196031066,24.2286,113.5,113.44,44.41318891]
[1644196032472,36.56638893,113.5,113.44,44.41318891]
[1644196032873,36.56638893,113.5,113.44,38.41318891]
[1644196033874,24.2286,113.5,113.44,38.41318891]
[1644196036073,24.2286,113.5,113.44,51.63718891]
[1644196036274,24.2286,113.5,113.44,51.88718891]
[1644196036573,0.25,113.5,113.44,51.88718891]
[1644196036773,22.9708,113.51,113.44,51.88718891]
[1644196036973,22.9708,113.51,113.44,57.88718891]
[1644196037174,1.24149897,113.52,113.44,60.02683166]
[1644196037474,1.24149897,113.53,113.48,40.39585319]
[1644196037674,1.24149897,113.54,113.48,40.39585319]
[1644196037877,1.24149897,113.55,113.48,40.39585319]
[1644196038074,25.23677571,113.54,113.48,40.39585319]
[1644196038475,26.47827468,113.54,113.48,40.39585319]
[1644196038672,32.72827468,113.54,113.48,40.39585319]
[1644196038874,32.72827468,113.54,113.45,12.74]
[1644196039075,1.24149897,113.53,113.45,12.74]
[1644196039284,1.49149897,113.53,113.45,12.74]
[1644196039484,7.49149897,113.53,113.45,12.74]
[1644196039685,7.49149897,113.53,113.45,25.9627]
[1644196039883,34.24361958,113.52,113.45,12.74]
[1644196040085,41.48511855,113.52,113.44,36.04001772]
[1644196040283,41.73511855,113.52,113.44,36.04001772]
[1644196046595,41.73511855,113.52,113.44,49.26381772]
[1644196046793,7.49149897,113.52,113.44,49.26381772]
[1644196047195,6.25,113.52,113.44,49.51381772]
[1644196047395,6.25,113.52,113.44,64.39346047]
[1644196047595,6.0,113.52,113.44,70.39346047]
[1644196048696,1.24149897,113.54,113.44,70.39346047]
[1644196048997,0.25,113.54,113.47,13.2192]
[1644196049198,0.25,113.54,113.48,48.75630674]
[1644196049403,1.24149897,113.55,113.48,48.75630674]
[1644196049596,7.24149897,113.55,113.48,49.00630674]
[1644196049798,1.24149897,113.55,113.48,49.00630674]
[1644196050000,7.24149897,113.55,113.48,49.00630674]
[1644196050598,1.24149897,113.55,113.48,62.22550674]
[1644196051104,1.49149897,113.55,113.48,62.22550674]
[1644196051301,1.49149897,113.55,113.48,61.97550674]
[1644196051506,7.49149897,113.55,113.48,61.97550674]
[1644196051699,1.49149897,113.55,113.48,61.97550674]
[1644196052301,0.25,113.55,113.48,61.97550674]
[1644196052502,44.07370869,113.56,113.48,61.97550674]
[1644196052702,1.24149897,113.55,113.48,62.22550674]
[1644196053000,44.07370869,113.56,113.48,62.22550674]
[1644196053400,44.07370869,113.56,113.48,61.97550674]
[1644196053600,1.24149897,113.55,113.48,61.97550674]
[1644196053801,22.89818557,113.54,113.48,61.97550674]
[1644196054301,23.14818557,113.54,113.48,61.97550674]
[1644196054702,29.14818557,113.54,113.48,61.97550674]
[1644196054900,23.14818557,113.54,113.48,61.97550674]
[1644196055400,29.14818557,113.54,113.45,22.9648]
[1644196055801,1.24149897,113.53,113.45,22.9648]
[1644196056000,30.38968454,113.54,113.45,22.9648]
[1644196056200,1.24149897,113.53,113.45,22.9648]
[1644196056400,1.24149897,113.53,113.46,48.82114207]
[1644196056603,6.25,113.53,113.46,48.82114207]
[1644196057000,7.49149897,113.53,113.46,48.82114207]
[1644196057600,36.58220972,113.52,113.46,48.82114207]
[1644196057800,36.83220972,113.52,113.46,48.82114207]
[1644196058001,42.83220972,113.52,113.46,48.82114207]
[1644196059809,42.83220972,113.52,113.45,22.9648]
[1644196060212,42.83220972,113.52,113.43,13.224]
[1644196060409,1.24149897,113.51,113.42,2.13959913]
[1644196060610,29.96779897,113.51,113.42,2.38959913]
[1644196060911,22.89818557,113.5,113.43,43.04861785]
[1644196061112,28.89818557,113.5,113.43,43.04861785]
[1644196061412,29.14818557,113.5,113.43,43.04861785]
[1644196062212,6.25,113.5,113.43,43.04861785]
[1644196062414,0.25,113.5,113.43,43.04861785]
[1644196062614,6.0,113.5,113.44,2.13959913]
[1644196062813,0.25,113.51,113.44,2.38959913]
[1644196063016,0.25,113.52,113.44,39.34339913]
[1644196063216,7.49149897,113.54,113.45,2.13959913]
[1644196063415,49.54323146,113.54,113.46,42.356601]
[1644196063722,49.54323146,113.54,113.46,42.606601]
[1644196064117,49.54323146,113.54,113.46,42.356601]
[1644196064915,49.54323146,113.54,113.46,55.578001]
[1644196066137,49.54323146,113.54,113.46,42.356601]
[1644196066638,17.4286628,113.52,113.46,42.356601]
[1644196066841,17.6786628,113.52,113.46,42.356601]
[1644196067040,23.6786628,113.52,113.46,42.356601]
[1644196067240,24.92016177,113.52,113.46,42.356601]
[1644196067840,7.49149897,113.52,113.46,42.356601]
[1644196068241,6.25,113.52,113.46,42.356601]
[1644196069241,0.25,113.52,113.46,42.356601]
[1644196069443,42.27749566,113.53,113.46,42.356601]
[1644196070044,42.27749566,113.53,113.42,14.87959913]
[1644196070246,1.24149897,113.51,113.41,22.6588]
[1644196070441,1.24149897,113.51,113.41,28.6588]
[1644196070643,7.49149897,113.51,113.41,28.6588]
[1644196070943,24.6943986,113.5,113.42,42.77969206]
[1644196071143,55.0902986,113.5,113.42,48.77969206]
[1644196071342,55.3402986,113.5,113.42,48.77969206]
[1644196072144,55.3402986,113.5,113.41,22.6588]
[1644196072344,60.98879757,113.5,113.39,24.1441]
[1644196072543,60.98879757,113.5,113.37,12.74]
[1644196072748,1.24149897,113.49,113.37,12.74]
[1644196072944,1.24149897,113.48,113.37,12.74]
[1644196073145,34.78599669,113.48,113.38,48.03435879]
[1644196073348,6.25,113.48,113.38,72.77295879]
[1644196073646,6.25,113.48,113.39,2.13959913]
[1644196073844,6.25,113.48,113.38,34.80345879]
[1644196073845,8.43683917,113.48,113.38,34.80345879]
[1644196074047,1.49149897,113.48,113.38,34.80345879]
[1644196074345,46.96473926,113.47,113.38,34.80345879]
[1644196074548,46.96473926,113.47,113.38,35.05345879]
[1644196074845,53.21473926,113.47,113.38,35.05345879]
[1644196077345,53.21473926,113.47,113.38,48.28425879]
[1644196077745,6.25,113.47,113.38,48.28425879]
[1644196078146,6.0,113.47,113.38,48.28425879]
[1644196078446,6.0,113.49,113.42,13.2245]
[1644196078646,69.11863487,113.5,113.43,35.01035393]
[1644196078845,69.11863487,113.5,113.43,35.26035393]
[1644196079847,69.36863487,113.5,113.43,35.26035393]
[1644196080246,69.36863487,113.5,113.43,35.01035393]
[1644196081447,69.36863487,113.5,113.41,22.8817]
[1644196081746,69.36863487,113.5,113.41,23.1317]
[1644196082349,69.36863487,113.5,113.41,64.62747399]
[1644196082748,69.36863487,113.5,113.41,41.74577399]
[1644196082950,69.36863487,113.5,113.41,41.49577399]
[1644196083148,70.61013384,113.5,113.39,25.9698]
[1644196083348,4.407,113.49,113.38,24.1011]
[1644196083548,18.38849897,113.49,113.37,23.9851]
[1644196083748,18.38849897,113.49,113.35,12.74]
[1644196083749,15.60216788,113.48,113.35,12.74]
[1644196083952,30.14889897,113.47,113.35,12.74]
[1644196084151,20.75766042,113.46,113.36,47.74535557]
[1644196084352,21.00766042,113.46,113.36,47.74535557]
[1644196084854,27.00766042,113.46,113.36,47.74535557]
[1644196085752,26.98678042,113.46,113.36,47.74535557]
[1644196086852,31.39478042,113.46,113.36,47.74535557]
[1644196088255,26.98678042,113.46,113.36,60.97865557]
[1644196089454,31.39478042,113.46,113.36,60.97865557]
[1644196089853,10.408,113.46,113.36,60.97865557]
[1644196090060,10.408,113.46,113.36,63.36286831]
[1644196090257,6.0,113.46,113.36,82.10286831]
[1644196090456,6.0,113.46,113.36,82.08139831]
[1644196090657,30.4994,113.47,113.36,82.08139831]
[1644196090856,67.92482926,113.47,113.36,86.48939831]
[1644196091258,68.17482926,113.47,113.36,86.48939831]
[1644196091685,68.17482926,113.47,113.36,110.21739831]
[1644196093262,68.17482926,113.47,113.36,107.83318557]
[1644196093663,68.17482926,113.47,113.36,108.08318557]
[1644196094464,68.17482926,113.47,113.36,107.83318557]
[1644196094667,68.17482926,113.47,113.36,17.148]
[1644196094864,12.74,113.46,113.36,4.408]
[1644196095065,4.408,113.45,113.33,24.3026]
[1644196095267,19.58483917,113.45,113.32,1.25131695]
[1644196095469,70.30065654,113.43,113.31,1.25155773]
[1644196095666,1.24149897,113.4,113.27,48.36435168]
[1644196095867,56.40692823,113.39,113.27,48.36435168]
[1644196096068,18.39149897,113.38,113.27,48.36435168]
[1644196096269,22.05555603,113.37,113.27,48.36435168]
[1644196096467,37.42542926,113.35,113.27,48.36435168]
[1644196096868,43.67542926,113.35,113.27,48.36435168]
[1644196097673,6.25,113.35,113.27,48.36435168]
[1644196097872,6.25,113.35,113.27,50.49319916]
[1644196098070,6.0,113.35,113.27,50.49319916]
[1644196098270,6.0,113.35,113.28,12.74]
[1644196098271,6.25,113.35,113.28,12.74]
[1644196098469,6.0,113.35,113.28,12.74]
[1644196098669,6.0,113.35,113.29,47.87354122]
[1644196098869,58.22751109,113.39,113.29,60.61354122]
[1644196099069,58.22751109,113.39,113.3,2.12884748]
[1644196099070,0.25,113.35,113.3,2.12884748]
[1644196099289,0.25,113.35,113.29,58.48469374]
[1644196100290,68.88951109,113.39,113.29,58.48469374]
[1644196100492,68.88951109,113.39,113.29,45.74469374]
[1644196100890,68.88951109,113.39,113.27,23.7974]
[1644196101093,71.07635026,113.39,113.27,23.7974]
[1644196101692,83.81635026,113.39,113.27,23.7974]
[1644196101893,83.81635026,113.39,113.27,68.42388353]
[1644196102491,83.56635026,113.39,113.27,68.42388353]
[1644196103692,83.81635026,113.39,113.27,68.42388353]
[1644196104695,83.81635026,113.39,113.27,44.62648353]
[1644196105695,93.02152644,113.39,113.27,44.62648353]
[1644196105893,102.24510161,113.39,113.27,44.62648353]
[1644196109603,102.24510161,113.39,113.26,0.1]
[1644196109805,102.24510161,113.39,113.25,0.1]
[1644196110206,103.48660058,113.39,113.25,0.1]
[1644196110404,102.24510161,113.39,113.25,0.1]
[1644196110605,102.24510161,113.39,113.25,42.21623153]
[1644196110809,102.24510161,113.39,113.26,0.1]
[1644196111206,93.03992543,113.39,113.26,0.1]
[1644196111807,83.81635026,113.39,113.27,39.67290025]
[1644196113107,79.40435026,113.39,113.27,39.67290025]
[1644196113309,79.40435026,113.39,113.29,48.04753675]
[1644196113909,77.21751109,113.39,113.29,48.04753675]
[1644196114107,79.40435026,113.39,113.29,48.04753675]
[1644196115610,4.41,113.38,113.29,48.04753675]
[1644196115812,24.3403742,113.37,113.26,0.1]
[1644196116010,28.3587,113.36,113.25,24.7681]
[1644196116210,36.79553917,113.36,113.26,0.1]
[1644196116812,35.14061109,113.35,113.26,44.67250287]
[1644196117211,41.39061109,113.35,113.26,44.67250287]
[1644196119013,2.18683917,113.34,113.26,0.1]
[1644196119214,12.74,113.33,113.23,0.1]
[1644196119415,4.413,113.32,113.23,0.1]
[1644196119815,10.663,113.32,113.23,0.1]
[1644196120113,24.3403742,113.31,113.23,47.91094769]
[1644196120316,24.5903742,113.31,113.24,0.1]
[1644196120515,30.5903742,113.31,113.24,0.1]
[1644196121617,6.25,113.31,113.24,0.1]
[1644196122018,0.25,113.31,113.24,0.1]
[1644196122218,6.0,113.31,113.24,0.1]
[1644196122618,41.15976304,113.31,113.24,0.1]
[1644196122818,30.3553,113.33,113.24,0.1]
[1644196123024,6.0,113.31,113.24,0.1]
[1644196123218,24.3553,113.33,113.24,0.1]
[1644196123618,24.3553,113.33,113.24,2.22884748]
[1644196123818,69.25246948,113.35,113.25,34.8057735]
[1644196124020,69.25246948,113.35,113.26,0.1]
[1644196124218,69.50246948,113.35,113.26,0.1]
[1644196125221,75.15596845,113.35,113.26,0.1]
[1644196126641,81.15596845,113.35,113.26,0.1]
[1644196127443,12.80881581,113.33,113.26,0.1]
[1644196127644,18.80881581,113.33,113.26,0.1]
[1644196127844,19.05881581,113.33,113.26,0.1]
[1644196128545,6.25,113.33,113.26,0.1]
[1644196128943,0.25,113.33,113.26,0.1]
[1644196129343,24.07179897,113.35,113.26,0.1]
[1644196129543,48.13503708,113.34,113.26,0.1]
[1644196129743,0.25,113.34,113.26,0.1]
[1644196130147,1.49149897,113.34,113.26,0.1]
[1644196130545,7.49149897,113.34,113.26,2.22884748]
[1644196130747,6.25,113.34,113.27,47.85406386]
[1644196130948,18.14576583,113.33,113.27,47.85406386]
[1644196131151,24.14576583,113.33,113.27,47.85406386]
[1644196131445,24.39576583,113.33,113.27,47.85406386]
[1644196131647,6.25,113.33,113.27,47.85406386]
[1644196132044,0.25,113.33,113.27,47.85406386]
[1644196132245,6.0,113.33,113.27,47.85406386]
[1644196132644,6.25,113.33,113.27,47.85406386]
[1644196132844,0.25,113.33,113.27,47.85406386]
[1644196133047,6.25,113.33,113.27,47.85406386]
[1644196134350,0.25,113.33,113.27,47.85406386]
[1644196134551,24.07179897,113.35,113.27,47.85406386]
[1644196135952,12.18696331,113.34,113.27,47.85406386]
[1644196136153,18.18696331,113.34,113.27,47.85406386]
[1644196136353,18.43696331,113.34,113.27,47.85406386]
[1644196137353,6.0,113.34,113.27,47.85406386]
[1644196137756,7.24149897,113.35,113.27,47.85406386]
[1644196137955,6.0,113.35,113.27,47.85406386]
[1644196138154,30.42119897,113.36,113.27,47.85406386]
[1644196138356,66.01326971,113.36,113.27,47.85406386]
[1644196138657,66.01326971,113.36,113.27,47.35406386]
[1644196138854,66.26326971,113.36,113.27,47.35406386]
[1644196141359,1.24149897,113.35,113.27,47.35406386]
[1644196141559,24.38891455,113.34,113.27,47.35406386]
[1644196141759,24.63891455,113.34,113.27,47.35406386]
[1644196141961,30.63891455,113.34,113.27,47.35406386]
[1644196142159,30.63891455,113.34,113.26,0.1]
[1644196142561,34.06725269,113.34,113.26,0.1]
[1644196142961,5.65449897,113.33,113.26,0.1]
[1644196143162,35.59207074,113.32,113.26,0.1]
[1644196143362,36.83356971,113.32,113.26,0.1]
[1644196143562,43.08356971,113.32,113.26,0.1]
[1644196144564,41.84207074,113.32,113.26,0.1]
[1644196144969,6.25,113.32,113.26,0.1]
[1644196145166,0.25,113.32,113.26,0.1]
[1644196145366,6.0,113.32,113.26,0.1]
[1644196145966,40.64471621,113.32,113.26,0.1]
[1644196146169,46.64471621,113.32,113.26,0.1]
[1644196146369,6.0,113.32,113.26,0.1]
[1644196146766,0.25,113.32,113.26,0.1]
[1644196147169,7.49149897,113.34,113.26,0.1]
[1644196147467,47.81095151,113.33,113.26,0.1]
[1644196147667,53.81095151,113.33,113.26,0.1]
[1644196147867,54.06095151,113.33,113.26,0.1]
[1644196148268,54.03095151,113.33,113.26,0.1]
[1644196148569,55.27245048,113.33,113.26,0.1]
[1644196152774,7.49149897,113.33,113.26,0.1]
[1644196153277,6.25,113.33,113.26,0.1]
[1644196153873,47.11108668,113.32,113.26,0.1]
[1644196154076,53.11108668,113.32,113.26,0.1]
[1644196154274,53.36108668,113.32,113.26,0.1]
[1644196158681,6.25,113.32,113.26,0.1]
[1644196158883,0.25,113.32,113.26,0.1]
[1644196159304,1.49149897,113.34,113.26,0.1]
[1644196159503,6.25,113.34,113.26,0.1]
[1644196159705,50.81603896,113.34,113.26,0.1]
[1644196160003,44.81603896,113.34,113.26,0.1]
[1644196160204,46.05753793,113.34,113.26,0.1]
[1644196161203,52.05753793,113.34,113.26,0.1]
[1644196164407,7.49149897,113.34,113.26,0.1]
[1644196164807,6.25,113.34,113.26,0.1]
[1644196165904,0.25,113.34,113.26,0.1]
[1644196166105,7.49149897,113.35,113.26,0.1]
[1644196167013,7.49149897,113.35,113.27,39.77151276]
[1644196167612,6.25,113.35,113.27,39.77151276]
[1644196167814,0.25,113.35,113.27,39.77151276]
[1644196168014,76.94791115,113.36,113.27,53.01531276]
[1644196168213,30.40039897,113.36,113.27,53.26531276]
[1644196169014,30.40039897,113.36,113.27,53.01531276]
[1644196169213,71.34259423,113.36,113.27,53.01531276]
[1644196169620,1.24149897,113.35,113.27,53.01531276]
[1644196169815,1.49149897,113.35,113.27,53.01531276]
[1644196170016,7.49149897,113.35,113.27,53.01531276]
[1644196170218,7.49149897,113.35,113.27,53.26531276]
[1644196170415,6.25,113.35,113.27,53.26531276]
[1644196170717,7.24149897,113.36,113.28,12.74]
[1644196170915,6.0,113.35,113.3,13.2397]
[1644196171119,6.0,113.36,113.3,13.2397]
[1644196171518,42.45642634,113.38,113.31,43.56392518]
[1644196172220,42.70642634,113.38,113.31,43.56392518]
[1644196172418,42.70642634,113.38,113.28,48.9149]
[1644196172619,22.798,113.37,113.28,35.6733]
[1644196172821,24.28949897,113.37,113.28,35.6733]
[1644196173020,30.28949897,113.37,113.28,35.6733]
[1644196173320,1.24149897,113.36,113.28,35.6733]
[1644196173520,25.97755689,113.36,113.28,71.34014497]
[1644196173721,1.24149897,113.35,113.28,71.34014497]
[1644196173920,35.21492737,113.34,113.28,71.34014497]
[1644196174320,41.46492737,113.34,113.28,71.34014497]
[1644196174721,41.46492737,113.34,113.26,24.0657]
[1644196174920,41.46492737,113.34,113.25,0.1]
[1644196175122,26.61493917,113.33,113.23,7.25155773]
[1644196175321,32.51943814,113.33,113.23,0.1]
[1644196175521,2.18683917,113.32,113.23,0.1]
[1644196175723,24.73605792,113.31,113.24,39.52173031]
[1644196175924,24.98605792,113.31,113.25,0.1]
[1644196176122,30.98605792,113.31,113.25,0.1]
[1644196177922,30.73605792,113.31,113.25,0.1]
[1644196178522,6.0,113.31,113.25,0.1]
[1644196178723,6.0,113.32,113.25,0.1]
[1644196179222,0.25,113.32,113.25,0.1]
[1644196179621,75.80270182,113.33,113.25,0.1]
[1644196181325,1.24149897,113.32,113.25,0.1]
[1644196181525,16.06788244,113.31,113.25,0.1]
[1644196181725,16.31788244,113.31,113.25,0.1]
[1644196182026,22.31788244,113.31,113.25,0.1]
[1644196183427,22.31788244,113.31,113.23,0.1]
[1644196184328,22.31788244,113.31,113.23,37.66911544]
[1644196184528,22.31788244,113.31,113.24,0.1]
[1644196191245,35.32418244,113.31,113.24,0.1]
[1644196191443,35.32418244,113.31,113.21,6.0]
[1644196191444,37.51102161,113.31,113.23,0.1]
[1644196191644,37.51102161,113.31,113.21,0.1]
[1644196191645,27.2232,113.3,113.21,0.1]
[1644196191844,27.4732,113.3,113.21,0.1]
[1644196192046,2.18683917,113.29,113.21,0.1]
[1644196192246,2.43683917,113.29,113.21,0.1]
[1644196192445,41.57490482,113.28,113.21,0.1]
[1644196192647,47.57490482,113.28,113.21,0.1]
[1644196192845,47.82490482,113.28,113.21,0.1]
[1644196199859,6.25,113.28,113.21,0.1]
[1644196200060,0.25,113.28,113.21,0.1]
[1644196200263,6.0,113.28,113.21,0.1]
[1644196200473,6.25,113.28,113.21,0.1]
[1644196200873,0.25,113.28,113.21,0.1]
[1644196201077,6.25,113.28,113.21,0.1]
[1644196202373,0.25,113.28,113.21,0.1]
[1644196202572,6.25,113.28,113.21,0.1]
[1644196203373,22.44907347,113.27,113.21,0.1]
[1644196203572,28.44907347,113.27,113.21,0.1]
[1644196203774,28.69907347,113.27,113.21,0.1]
[1644196204174,6.25,113.27,113.21,0.1]
[1644196205377,23.5806,113.27,113.21,0.1]
[1644196205677,29.5806,113.27,113.21,0.1]
[1644196206575,18.45392078,113.26,113.21,0.1]
[1644196206776,0.25,113.26,113.21,0.1]
[1644196206975,6.25,113.26,113.21,0.1]
[1644196207575,0.25,113.26,113.21,0.1]
[1644196207775,6.0,113.26,113.21,0.1]
[1644196208378,23.3306,113.27,113.21,0.1]
[1644196209282,23.5806,113.27,113.21,0.1]
[1644196211584,29.5806,113.27,113.21,0.1]
[1644196213088,6.25,113.27,113.21,0.1]
[1644196213487,0.25,113.27,113.21,0.1]
[1644196213685,55.731932,113.29,113.21,0.1]
[1644196213886,1.24149897,113.28,113.21,0.1]
[1644196214088,6.0,113.28,113.21,0.1]
[1644196214287,6.25,113.28,113.21,0.1]
[1644196214891,1.49149897,113.28,113.21,0.1]
[1644196215090,7.49149897,113.28,113.21,0.1]
[1644196215591,13.47378003,113.27,113.21,0.1]
[1644196215790,22.08378003,113.27,113.21,0.1]
[1644196216089,14.61,113.27,113.21,0.1]
[1644196216590,14.36,113.27,113.21,0.1]
[1644196217190,13.48202779,113.26,113.21,0.1]
[1644196217388,13.48202779,113.26,113.2,0.51069242]
[1644196217590,24.1459,113.25,113.2,0.51069242]
[1644196217989,30.3959,113.25,113.2,0.51069242]
[1644196218192,45.93980116,113.24,113.2,0.51069242]
[1644196218592,52.18980116,113.24,113.2,0.51069242]
[1644196219216,52.18980116,113.24,113.2,9.242e-05]
[1644196219394,6.25,113.24,113.2,9.242e-05]
[1644196219592,0.25,113.24,113.2,9.242e-05]
[1644196219793,2.18683917,113.23,113.2,9.242e-05]
[1644196219993,10.48039994,113.22,113.2,9.242e-05]
[1644196220194,33.58029994,113.22,113.2,9.242e-05]
[1644196220395,33.83029994,113.22,113.2,9.242e-05]
[1644196221394,36.01713911,113.22,113.2,9.242e-05]
[1644196221593,37.25863808,113.22,113.2,9.242e-05]
[1644196221795,33.83029994,113.22,113.2,9.242e-05]
[1644196222494,39.83029994,113.22,113.2,9.242e-05]
[1644196222894,42.01713911,113.22,113.2,9.242e-05]
[1644196223896,39.83029994,113.22,113.2,9.242e-05]
[1644196225394,19.22489689,113.21,113.17,0.22487788]
[1644196225594,25.22489689,113.21,113.17,0.22487788]
[1644196225897,25.47489689,113.21,113.17,0.22487788]
[1644196227095,13.2647,113.2,113.17,0.22487788]
[1644196227295,35.01012691,113.19,113.17,0.22487788]
[1644196227696,41.26012691,113.19,113.17,0.22487788]
[1644196228300,3.03219997,113.18,113.17,0.22487788]
[1644196228799,9.28219997,113.18,113.17,0.22487788]
[1644196228999,9.28219997,113.18,113.16,0.54428416]
[1644196229000,43.0,113.17,113.16,0.00975576]